bitfinex/quotes_BTCUSD_20260126
["timestamp","ask_amount","ask_price","bid_price","bid_amount"]
[1769390265824,0.0002,87440.0,87424.0,1.14041294]
[1769390266027,0.0002,87440.0,87423.0,0.01143863]
[1769390266155,0.0002,87440.0,87430.0,0.12759955]
[1769390266360,0.0002,87440.0,87433.0,1.14041294]
[1769390266561,0.0002,87440.0,87434.0,0.12759955]
[1769390267404,0.01143484,87452.0,87434.0,0.12759955]
[1769390267405,0.05717422,87452.0,87434.0,0.12759955]
[1769390267565,0.01143523,87449.0,87434.0,0.12759955]
[1769390267768,0.01143562,87446.0,87434.0,0.12759955]
[1769390268116,0.01143575,87445.0,87427.0,1.14041294]
[1769390268279,0.01143602,87443.0,87428.0,0.12759955]
[1769390268466,0.01143549,87447.0,87428.0,1.14041294]
[1769390268669,0.01143562,87446.0,87429.0,0.12759955]
[1769390268867,0.01143589,87444.0,87430.0,1.14041294]
[1769390269117,0.05717658,87449.0,87430.0,1.26801249]
[1769390269324,0.12796416,87450.0,87431.0,0.12759955]
[1769390269483,0.04119842,87474.0,87431.0,0.12759955]
[1769390269484,0.08968457,87461.0,87431.0,0.12759955]
[1769390269693,0.13939691,87468.0,87446.0,1.14041294]
[1769390270000,1.07720689,87466.0,87448.0,1.14041294]
[1769390270210,1.07720689,87466.0,87450.0,0.12759955]
[1769390270211,0.01143314,87465.0,87450.0,0.12759955]
[1769390270455,0.01143379,87460.0,87450.0,0.12759955]
[1769390270667,0.01143432,87456.0,87450.0,0.11759955]
[1769390270892,0.05717752,87447.0,87430.0,0.12759955]
[1769390271117,0.01143562,87446.0,87430.0,1.14041294]
[1769390271314,0.05718073,87443.0,87432.0,0.12759955]
[1769390271500,0.01143602,87443.0,87432.0,0.12759955]
[1769390271813,0.00046878,87446.0,87443.0,0.01]
[1769390272135,0.00046878,87446.0,87436.0,0.12759955]
[1769390272331,0.01143589,87444.0,87436.0,0.12759955]
[1769390272470,0.0119044,87446.0,87436.0,1.26801249]
[1769390272471,0.00046878,87446.0,87436.0,1.26801249]
[1769390272673,0.00046878,87446.0,87437.0,1.14041294]
[1769390272872,0.00046878,87446.0,87438.0,1.14041294]
[1769390273074,0.00046878,87446.0,87439.0,0.12759955]
[1769390273339,0.00046878,87446.0,87420.0,0.12759955]
[1769390273340,0.01143654,87439.0,87420.0,0.12759955]
[1769390273537,0.01143654,87439.0,87421.0,0.01885148]
[1769390273788,0.01143667,87438.0,87421.0,0.12759955]
[1769390273987,0.01143589,87444.0,87424.0,1.14041294]
[1769390274148,0.13939991,87445.0,87427.0,0.12759955]
[1769390274352,0.01143575,87445.0,87431.0,0.12759955]
[1769390274553,0.01143575,87445.0,87420.0,0.06863404]
[1769390274554,0.00046878,87446.0,87436.0,1.14041294]
[1769390274753,0.01143405,87458.0,87439.0,0.12759955]
[1769390274955,0.00014055,87458.0,87443.0,0.12759955]
[1769390275161,0.00014055,87458.0,87439.0,0.01143654]
[1769390275162,0.00014055,87458.0,87445.0,1.14041294]
[1769390275509,0.00014055,87458.0,87446.0,0.12759955]
[1769390275852,0.01143445,87455.0,87446.0,0.12759955]
[1769390276054,0.01143471,87453.0,87446.0,0.12759955]
[1769390276277,0.01143497,87451.0,87439.0,0.12759955]
[1769390276714,0.01143419,87457.0,87440.0,1.14041294]
[1769390276913,0.01143484,87452.0,87439.0,0.12759955]
[1769390277140,1.06802993,87453.0,87439.0,0.12759955]
[1769390277354,0.01143458,87454.0,87439.0,0.12759955]
[1769390277534,0.01143419,87457.0,87440.0,1.14041294]
[1769390277728,0.01143445,87455.0,87440.0,1.14041294]
[1769390277928,1.05659522,87457.0,87440.0,1.14041294]
[1769390278131,0.11385329,87456.0,87440.0,1.26801249]
[1769390278336,0.01143458,87454.0,87440.0,0.12759955]
[1769390278540,0.11385329,87453.0,87441.0,1.14041294]
[1769390278685,0.11385329,87452.0,87444.0,0.12759955]
[1769390279089,0.11385329,87451.0,87444.0,0.12759955]
[1769390279254,0.00014055,87458.0,87444.0,0.12759955]
[1769390279418,0.11387863,87457.0,87444.0,0.12759955]
[1769390279624,0.11387863,87456.0,87444.0,0.12759955]
[1769390279837,0.11387863,87455.0,87444.0,0.12759955]
[1769390280181,0.11387863,87454.0,87444.0,0.12759955]
[1769390280350,0.11387863,87453.0,87438.0,0.02287335]
[1769390280550,1.06802941,87457.0,87439.0,0.12759955]
[1769390280551,0.11387863,87452.0,87439.0,0.12759955]
[1769390280757,0.11387863,87451.0,87440.0,1.14041294]
[1769390280942,0.00014055,87458.0,87434.0,0.04576]
[1769390280943,1.59897478,87450.0,87434.0,0.04576]
[1769390281138,0.01143549,87447.0,87433.0,0.12759955]
[1769390281347,0.42850093,87443.0,87432.0,0.00027]
[1769390281572,0.01143706,87435.0,87432.0,0.00027]
[1769390281771,0.42850093,87432.0,87415.0,0.12759955]
[1769390281970,0.42850093,87432.0,87416.0,1.16329204]
[1769390282289,0.42850093,87440.0,87421.0,0.12759955]
[1769390282488,0.11398192,87439.0,87432.0,0.01]
[1769390282695,0.12541859,87438.0,87417.0,0.12759955]
[1769390282850,0.11398192,87437.0,87420.0,0.12759955]
[1769390283061,0.11398192,87437.0,87421.0,0.15047734]
[1769390283062,0.12541872,87437.0,87421.0,0.15047734]
[1769390283251,0.01143706,87435.0,87421.0,0.15047734]
[1769390283458,0.01143693,87436.0,87421.0,0.15047734]
[1769390283798,0.11401161,87435.0,87421.0,0.15047734]
[1769390283947,0.01143667,87438.0,87421.0,0.15047734]
[1769390284152,0.01143706,87435.0,87421.0,0.15047734]
[1769390284387,1.06210991,87439.0,87421.0,0.15047734]
[1769390284552,0.13673618,87460.0,87440.0,1.09335949]
[1769390284752,0.01143458,87454.0,87441.0,0.02131047]
[1769390284993,0.42850093,87451.0,87441.0,0.02131047]
[1769390285195,0.01143536,87448.0,87437.0,0.12844385]
[1769390285409,0.01143615,87442.0,87423.0,0.12844385]
[1769390285593,0.42850093,87433.0,87424.0,0.01635377]
[1769390285796,0.74783592,87436.0,87421.0,0.02287779]
[1769390286049,0.75927285,87436.0,87421.0,0.02287779]
[1769390286249,0.74783592,87436.0,87421.0,0.02287779]
[1769390287250,0.42850093,87431.0,87421.0,0.02287779]
[1769390287446,0.42850093,87431.0,87420.0,0.12844385]
[1769390288216,0.43993852,87431.0,87420.0,0.12844385]
[1769390288415,0.43993852,87431.0,87406.0,0.01144086]
[1769390288416,0.01143955,87416.0,87391.0,1.09335949]
[1769390288605,0.42850093,87410.0,87394.0,0.12844385]
[1769390288798,0.73616107,87416.0,87396.0,0.12844385]
[1769390289009,0.01143916,87419.0,87401.0,0.12844385]
[1769390289220,0.43993995,87420.0,87404.0,0.12844385]
[1769390289435,0.01143981,87414.0,87404.0,0.12844385]
[1769390289639,0.01143981,87414.0,87391.0,0.00014061]
[1769390289640,0.01144007,87412.0,87396.0,0.12844385]
[1769390289854,0.01144007,87412.0,87391.0,0.00128698]
[1769390289855,0.42850093,87410.0,87398.0,0.12844385]
[1769390290059,0.0114406,87408.0,87391.0,0.00014061]
[1769390290265,0.73318685,87405.0,87391.0,0.00014061]
[1769390290507,0.01144138,87402.0,87391.0,0.00014061]
[1769390290925,0.01144151,87401.0,87391.0,0.00014061]
[1769390291159,0.01144125,87403.0,87391.0,0.00014061]
[1769390291366,0.01144138,87402.0,87391.0,0.00014061]
[1769390291577,0.09985047,87401.0,87357.0,0.22894448]
[1769390291778,0.09985047,87401.0,87353.0,0.0004]
[1769390291779,0.71932046,87386.0,87364.0,0.12540875]
[1769390292070,0.84734558,87384.0,87366.0,0.12844385]
[1769390292298,0.01144479,87376.0,87366.0,0.12844385]
[1769390292507,0.05722133,87380.0,87366.0,0.12844385]
[1769390292634,0.01144465,87377.0,87366.0,0.12844385]
[1769390293050,0.43994519,87380.0,87366.0,0.12844385]
[1769390293258,0.42850093,87380.0,87367.0,1.09335949]
[1769390293457,0.42850093,87380.0,87367.0,1.22180334]
[1769390293712,1.14769923,87380.0,87367.0,0.12844385]
[1769390293881,0.01144361,87385.0,87367.0,0.12844385]
[1769390294083,0.01144387,87383.0,87367.0,0.12844385]
[1769390294315,0.01144413,87381.0,87367.0,0.12844385]
[1769390294524,0.01144426,87380.0,87367.0,0.12844385]
[1769390294760,0.01144243,87394.0,87370.0,0.01144557]
[1769390294986,0.01144269,87392.0,87380.0,0.01]
[1769390295205,0.42850093,87390.0,87374.0,0.12844385]
[1769390295408,0.01144334,87387.0,87374.0,0.12844385]
[1769390295615,0.42850093,87390.0,87374.0,0.12844385]
[1769390296840,0.42850093,87390.0,87375.0,1.07164625]
[1769390297040,0.42850093,87400.0,87390.0,0.01]
[1769390297240,0.42850093,87400.0,87385.0,0.01366995]
[1769390297520,0.01144138,87402.0,87385.0,0.01366995]
[1769390297723,0.01144046,87409.0,87388.0,1.07164625]
[1769390298084,0.01144046,87409.0,87383.0,0.01144387]
[1769390298085,0.01144073,87407.0,87393.0,0.13097774]
[1769390298291,0.01144086,87406.0,87393.0,0.13097774]
[1769390298713,0.01144086,87406.0,87393.0,0.12410574]
[1769390298714,0.01144112,87404.0,87393.0,0.12410574]
[1769390298888,0.01144125,87403.0,87393.0,0.12066974]
[1769390299118,0.01144151,87401.0,87393.0,0.11723374]
[1769390299319,0.01144151,87401.0,87393.0,0.11036174]
[1769390299673,0.01144151,87401.0,87388.0,0.13097774]
[1769390299887,0.0114419,87398.0,87388.0,0.13097774]
[1769390300068,0.01144204,87397.0,87383.0,1.07164625]
[1769390300263,0.01144295,87390.0,87366.0,0.0114461]
[1769390300467,0.01144295,87390.0,87369.0,0.13097774]
[1769390300468,0.01144321,87388.0,87369.0,0.13097774]
[1769390300703,0.01144321,87388.0,87367.0,0.04576]
[1769390300704,0.01144308,87389.0,87371.0,0.13097774]
[1769390300915,0.01144334,87387.0,87371.0,0.13097774]
[1769390301118,0.01144295,87390.0,87372.0,1.20262399]
[1769390301319,0.05721223,87394.0,87367.0,0.04576]
[1769390301320,1.05510203,87392.0,87373.0,1.20262399]
[1769390301519,1.06654472,87392.0,87374.0,0.00117588]
[1769390301757,0.01144321,87388.0,87374.0,0.00117588]
[1769390301953,0.01144295,87390.0,87374.0,0.00117588]
[1769390302164,0.01144308,87389.0,87373.0,1.20262399]
[1769390302286,0.01144321,87388.0,87373.0,1.20262399]
[1769390302507,0.01144334,87387.0,87373.0,1.20262399]
[1769390302692,0.06865941,87388.0,87373.0,1.20262399]
[1769390302893,0.01144269,87392.0,87388.0,0.01]
[1769390303221,1.06654459,87393.0,87374.0,0.13097774]
[1769390303424,0.01144269,87392.0,87374.0,1.07164625]
[1769390303606,0.01144282,87391.0,87375.0,0.13215359]
[1769390303810,0.42850093,87390.0,87375.0,0.13215359]
[1769390304009,0.42850093,87390.0,87375.0,0.13215373]
[1769390304415,0.42850093,87390.0,87376.0,0.13097774]
[1769390306023,0.01144256,87393.0,87376.0,0.13097774]
[1769390306243,0.03702844,87392.0,87376.0,0.13097774]
[1769390306431,0.03702844,87392.0,87363.0,0.01144649]
[1769390306432,0.01144334,87387.0,87363.0,0.01144649]
[1769390306637,1.05510203,87387.0,87370.0,1.07164625]
[1769390306869,1.05510203,87387.0,87366.0,0.01158673]
[1769390306870,0.01144321,87388.0,87371.0,1.07164625]
[1769390307063,0.03702896,87388.0,87372.0,0.13097774]
[1769390307269,0.01144334,87387.0,87372.0,0.13097774]
[1769390307617,0.01144361,87385.0,87372.0,0.13097774]
[1769390307817,0.01144374,87384.0,87372.0,0.13097774]
[1769390308030,1.05510203,87381.0,87366.0,0.00014063]
[1769390308300,0.011444,87382.0,87366.0,0.00014063]
[1769390308301,0.43994493,87382.0,87366.0,0.00151736]
[1769390308503,0.01144426,87380.0,87366.0,0.00151736]
[1769390308707,0.01144413,87381.0,87366.0,0.00151736]
[1769390309008,1.49504696,87382.0,87366.0,0.00151736]
[1769390309616,1.48360296,87382.0,87366.0,0.00151736]
[1769390310172,0.01144413,87381.0,87366.0,0.00151736]
[1769390310385,1.06654616,87381.0,87366.0,0.00151736]
[1769390310582,0.14313705,87383.0,87367.0,1.07164625]
[1769390310583,0.13169318,87383.0,87367.0,1.07164625]
[1769390310805,0.01144361,87385.0,87369.0,0.13097774]
[1769390310964,0.01144361,87385.0,87370.0,0.0013768]
[1769390311422,0.42850093,87380.0,87370.0,0.0013768]
[1769390311624,0.42850093,87390.0,87370.0,1.07302305]
[1769390311835,0.57163706,87390.0,87372.0,1.20262399]
[1769390312058,0.04139929,87389.0,87372.0,1.20262399]
[1769390312254,0.56019411,87390.0,87372.0,1.20262399]
[1769390312489,0.02995621,87388.0,87372.0,1.20262399]
[1769390312681,0.0114423,87395.0,87375.0,1.07164625]
[1769390312891,0.42850093,87390.0,87376.0,0.13212221]
[1769390313640,0.42850093,87390.0,87376.0,1.28821483]
[1769390313845,0.42850093,87390.0,87377.0,0.11912985]
[1769390314135,1.18679521,87396.0,87378.0,1.16971086]
[1769390314359,0.01144177,87399.0,87381.0,0.12256385]
[1769390314539,1.06654433,87395.0,87382.0,0.01361809]
[1769390314749,0.01936799,87394.0,87381.0,0.12256385]
[1769390315243,0.01877624,87393.0,87382.0,0.12256385]
[1769390315407,0.02971728,87397.0,87382.0,0.12256385]
[1769390315775,0.02971728,87397.0,87383.0,0.12256385]
[1769390315907,1.06654433,87395.0,87383.0,0.12256385]
[1769390316106,1.06654433,87395.0,87369.0,0.05722841]
[1769390316107,0.01144295,87390.0,87375.0,0.12256385]
[1769390316319,0.01681838,87392.0,87376.0,0.12256385]
[1769390316525,0.01144295,87390.0,87376.0,0.12256385]
[1769390316922,1.06654485,87391.0,87376.0,0.12256385]
[1769390317125,1.05510203,87391.0,87376.0,0.12256385]
[1769390317544,1.24538036,87397.0,87377.0,0.12256385]
[1769390317739,0.42850093,87390.0,87377.0,0.12256385]
[1769390318317,0.43994388,87390.0,87377.0,0.12256385]
[1769390319244,0.42850093,87390.0,87378.0,1.15609262]
[1769390319486,0.43994388,87390.0,87377.0,0.12256385]
[1769390319646,0.01144256,87393.0,87377.0,1.27865647]
[1769390319861,0.42850093,87390.0,87377.0,0.12256385]
[1769390320263,1.05510203,87394.0,87378.0,1.15609262]
[1769390320471,0.13995328,87393.0,87379.0,0.12256385]
[1769390320750,0.42850093,87390.0,87379.0,0.12256385]
[1769390321131,0.01144269,87392.0,87379.0,0.12256385]
[1769390321255,0.01144295,87390.0,87379.0,0.12256385]
[1769390321611,0.01144295,87390.0,87363.0,0.05723243]
[1769390321612,0.01144348,87386.0,87367.0,1.15609262]
[1769390321815,0.12585263,87385.0,87368.0,1.15609262]
[1769390322019,0.01144374,87384.0,87369.0,1.15609262]
[1769390322254,0.42850093,87380.0,87367.0,0.12256385]
[1769390322636,1.48360296,87380.0,87361.0,0.0458]
[1769390322838,1.05510203,87379.0,87362.0,0.12256385]
[1769390323200,0.01144479,87376.0,87362.0,0.12256385]
[1769390323401,1.05510203,87377.0,87362.0,0.12256385]
[1769390323402,1.06654668,87377.0,87362.0,0.12256385]
[1769390323608,1.05510203,87377.0,87362.0,0.12256385]
[1769390323810,0.01144439,87379.0,87362.0,0.12256385]
[1769390324038,0.42850093,87380.0,87362.0,0.12256385]
[1769390324245,0.43994519,87380.0,87362.0,0.12256385]
[1769390324736,0.01144439,87379.0,87362.0,0.12256385]
[1769390324935,0.01144452,87378.0,87362.0,0.12256385]
[1769390325106,0.01144439,87379.0,87362.0,0.12256385]
[1769390325307,0.01144452,87378.0,87362.0,0.12256385]
[1769390325506,1.55226856,87380.0,87362.0,0.12256385]
[1769390325507,1.49504722,87380.0,87362.0,0.12256385]
[1769390325929,1.49504722,87380.0,87363.0,0.0011448]
[1769390326362,0.13306988,87382.0,87363.0,0.0011448]
[1769390326363,0.13306988,87382.0,87363.0,1.15723742]
[1769390326592,0.43994519,87380.0,87366.0,0.00128539]
[1769390326793,1.48360296,87380.0,87366.0,0.00128539]
[1769390328176,0.011444,87382.0,87368.0,0.12256385]
[1769390328380,0.01144387,87383.0,87369.0,0.00114472]
[1769390328750,0.01144387,87383.0,87369.0,0.12370857]
[1769390328751,0.11443286,87382.0,87369.0,0.12370857]
[1769390328920,0.01144374,87384.0,87369.0,0.12370857]
[1769390329068,0.011444,87382.0,87369.0,0.12370857]
[1769390329486,0.01144413,87381.0,87369.0,0.12370857]
[1769390329695,0.42850093,87380.0,87369.0,0.12370857]
[1769390330088,0.43994519,87380.0,87369.0,0.12370857]
[1769390330837,0.01144308,87389.0,87370.0,1.15609262]
[1769390331046,0.01144387,87383.0,87380.0,0.01]
[1769390331342,1.06654537,87387.0,87368.0,0.12256385]
[1769390331343,0.02094749,87386.0,87368.0,0.12256385]
[1769390331565,0.02094749,87386.0,87366.0,0.00014063]
[1769390331566,0.11444934,87385.0,87370.0,1.15609262]
[1769390331765,1.05510203,87388.0,87370.0,1.15609262]
[1769390331766,0.13300957,87384.0,87371.0,0.12256385]
[1769390331972,0.11444934,87383.0,87371.0,0.12256385]
[1769390332175,0.02993983,87387.0,87371.0,0.12256385]
[1769390332312,0.11444934,87386.0,87371.0,0.12256385]
[1769390332518,0.13281308,87385.0,87371.0,0.12256385]
[1769390332758,0.11444934,87384.0,87371.0,0.12256385]
[1769390333103,0.01607324,87383.0,87371.0,0.12256385]
[1769390333253,0.01607324,87383.0,87366.0,0.00014063]
[1769390333254,0.01607324,87383.0,87366.0,0.12270448]
[1769390333455,1.07404552,87385.0,87366.0,0.12252615]
[1769390333618,0.11445184,87384.0,87366.0,0.12109943]
[1769390333818,0.13473858,87383.0,87366.0,0.11967257]
[1769390334136,0.02028674,87383.0,87367.0,0.12202868]
[1769390334328,0.42850093,87380.0,87367.0,1.27705078]
[1769390334530,0.01144439,87379.0,87361.0,1.20201622]
[1769390334829,0.02558575,87379.0,87364.0,0.12256385]
[1769390335176,0.02558575,87379.0,87364.0,1.15609262]
[1769390335378,0.02558575,87379.0,87365.0,0.12256385]
[1769390335563,0.01144452,87378.0,87365.0,0.12256385]
[1769390335779,0.13306962,87384.0,87366.0,1.15609262]
[1769390336018,0.011444,87382.0,87366.0,1.27865647]
[1769390336233,0.01144426,87380.0,87366.0,1.27865647]
[1769390336678,0.01144439,87379.0,87366.0,1.27865647]
[1769390337129,0.01144426,87380.0,87366.0,1.27865647]
[1769390337546,0.13306962,87384.0,87366.0,1.27865647]
[1769390337709,0.01144413,87381.0,87366.0,1.27865647]
[1769390337932,0.01144505,87374.0,87366.0,0.12256385]
[1769390338168,0.06867083,87374.0,87366.0,0.12256385]
[1769390338376,0.02558575,87378.0,87361.0,0.0001236]
[1769390338377,0.04119842,87371.0,87361.0,0.0001236]
[1769390338577,0.01144741,87356.0,87333.0,0.0458]
[1769390338749,1.17973046,87360.0,87340.0,1.15609262]
[1769390338949,0.01144701,87359.0,87343.0,1.15609262]
[1769390339128,1.17973046,87360.0,87343.0,1.27865647]
[1769390339345,0.0114461,87366.0,87343.0,1.15609262]
[1769390339545,0.0114461,87366.0,87340.0,0.0114495]
[1769390339546,0.01144623,87365.0,87347.0,0.12256385]
[1769390339755,1.05810458,87364.0,87347.0,0.12256385]
[1769390339957,0.01144649,87363.0,87347.0,0.12256385]
[1769390340154,0.01144662,87362.0,87347.0,0.12256385]
[1769390340356,0.01144675,87361.0,87347.0,0.12256385]
[1769390340806,1.05810458,87361.0,87347.0,0.12256385]
[1769390341008,1.06955133,87361.0,87348.0,0.01263415]
[1769390341394,0.43994781,87360.0,87342.0,0.01263438]
[1769390341650,1.05810458,87359.0,87342.0,0.01263438]
[1769390342056,0.42946663,87352.0,87342.0,0.12256385]
[1769390342280,0.01144767,87354.0,87342.0,0.12256385]
[1769390342479,0.01144714,87358.0,87342.0,0.12256385]
[1769390342806,0.44091351,87360.0,87345.0,0.12256385]
[1769390342934,0.44091351,87360.0,87346.0,0.01263349]
[1769390343146,0.42946663,87360.0,87346.0,0.01263349]
[1769390343344,1.05810458,87369.0,87349.0,1.0993766]
[1769390343547,0.04119842,87388.0,87355.0,1.0993766]
[1769390343548,0.01144413,87381.0,87355.0,1.0993766]
[1769390343748,1.19208933,87383.0,87338.0,0.00084663]
[1769390343749,0.14524806,87380.0,87369.0,0.01]
[1769390343971,0.11431136,87379.0,87369.0,0.12401997]
[1769390344337,0.02508374,87378.0,87369.0,0.12150704]
[1769390344543,0.02558575,87377.0,87369.0,0.1209683]
[1769390344765,0.21409782,87391.0,87371.0,0.11401997]
[1769390344967,0.11430451,87390.0,87374.0,0.11401997]
[1769390345173,0.12574759,87389.0,87375.0,0.11401997]
[1769390345379,0.14970946,87388.0,87375.0,0.11401997]
[1769390345590,0.14970946,87388.0,87367.0,0.11401997]
[1769390345591,1.17240909,87387.0,87367.0,0.11401997]
[1769390345794,0.42946663,87380.0,87367.0,0.11401997]
[1769390346384,0.42946663,87380.0,87368.0,1.0993766]
[1769390346971,0.01144361,87385.0,87368.0,1.0993766]
[1769390347289,0.11431281,87384.0,87368.0,1.0993766]
[1769390347441,1.05810458,87385.0,87368.0,1.21339657]
[1769390348104,1.05810458,87385.0,87369.0,1.0993766]
[1769390348415,0.12254088,87387.0,87371.0,0.11401997]
[1769390348616,0.01144348,87386.0,87371.0,0.11401997]
[1769390348962,0.42946663,87390.0,87371.0,0.11401997]
[1769390349230,0.01144334,87387.0,87371.0,0.11401997]
[1769390349569,0.01144374,87384.0,87371.0,0.11401997]
[1769390349903,0.01144361,87385.0,87371.0,0.11401997]
[1769390350088,0.02558575,87386.0,87371.0,0.11401997]
[1769390350291,0.02558575,87387.0,87372.0,1.11082191]
[1769390350471,0.00014055,87391.0,87375.0,1.0993766]
[1769390350671,0.11432263,87390.0,87378.0,0.11401997]
[1769390350905,0.00014055,87391.0,87381.0,1.0993766]
[1769390351100,0.00014055,87391.0,87383.0,1.0993766]
[1769390351282,0.00014055,87391.0,87386.0,0.11401997]
[1769390351480,0.00014055,87391.0,87388.0,0.11401997]
[1769390351735,0.00305167,87388.0,87376.0,1.0993766]
[1769390351892,0.00305167,87388.0,87377.0,0.11401997]
[1769390352141,0.01449488,87388.0,87377.0,0.11401997]
[1769390352295,0.00305167,87388.0,87377.0,0.11401997]
[1769390352486,0.01144334,87387.0,87377.0,0.11401997]
[1769390353085,0.00014055,87391.0,87367.0,0.11401997]
[1769390353287,0.020736,87421.0,87366.0,0.0458]
[1769390353288,0.42946663,87410.0,87390.0,1.11081955]
[1769390353526,0.11428931,87409.0,87393.0,0.11401997]
[1769390353681,0.11428931,87408.0,87397.0,0.11401997]
[1769390353886,0.11428931,87407.0,87398.0,0.11401997]
[1769390354103,0.11428931,87406.0,87399.0,1.0993766]
[1769390354303,0.0003776,87417.0,87406.0,0.00694833]
[1769390354560,0.0003776,87417.0,87407.0,0.10305065]
[1769390354680,0.0003776,87417.0,87407.0,0.10282816]
[1769390357291,0.0003776,87417.0,87398.0,0.11860792]
[1769390357494,0.01181702,87417.0,87399.0,0.11860792]
[1769390357730,0.01143968,87415.0,87399.0,0.11860792]
[1769390357942,0.01181702,87417.0,87402.0,1.04195436]
[1769390358145,0.0003776,87417.0,87403.0,0.11682771]
[1769390358347,0.0003776,87417.0,87403.0,0.11415658]
[1769390358559,0.0003776,87417.0,87403.0,0.11333622]
[1769390358723,0.00305167,87403.0,87385.0,0.01144361]
[1769390358925,1.06514263,87402.0,87383.0,0.11860792]
[1769390359192,0.09155694,87421.0,87400.0,0.11860792]
[1769390359435,0.42946663,87420.0,87402.0,0.11860792]
[1769390359661,1.07658205,87417.0,87402.0,0.11860792]
[1769390359894,1.0612297,87411.0,87392.0,0.11860792]
[1769390360070,1.0612297,87411.0,87393.0,0.14149304]
[1769390360220,1.07267016,87409.0,87393.0,0.14149304]
[1769390360421,1.0612297,87409.0,87393.0,0.14149304]
[1769390361928,1.07267016,87409.0,87393.0,0.14149304]
[1769390362107,1.07267003,87410.0,87393.0,0.11860792]
[1769390362310,1.07267003,87410.0,87394.0,0.02288486]
[1769390362519,0.42946663,87404.0,87394.0,0.02288486]
[1769390362661,1.07267108,87402.0,87384.0,0.11860792]
[1769390362861,1.0612297,87401.0,87384.0,0.11860792]
[1769390363110,0.01144164,87400.0,87384.0,0.11860792]
[1769390363261,0.01144217,87396.0,87384.0,0.11860792]
[1769390363462,0.0114423,87395.0,87384.0,0.11860792]
[1769390363663,0.01144282,87391.0,87375.0,0.11860792]
[1769390363896,1.07267265,87390.0,87375.0,0.11860792]
[1769390364077,0.01144361,87385.0,87369.0,0.11860792]
[1769390364443,0.01144361,87385.0,87362.0,0.01144662]
[1769390364444,0.42946663,87380.0,87362.0,0.11860792]
[1769390364629,1.06109056,87379.0,87364.0,0.11860792]
[1769390364837,1.23685056,87379.0,87364.0,0.11860792]
[1769390365039,1.07253535,87376.0,87361.0,0.0003776]
[1769390365184,1.1022874,87376.0,87361.0,0.0003776]
[1769390365391,1.06109056,87376.0,87361.0,0.11898552]
[1769390365976,0.42946663,87371.0,87361.0,0.11898552]
[1769390366190,0.05264334,87375.0,87361.0,0.0003776]
[1769390366394,1.07253535,87376.0,87361.0,0.0003776]
[1769390366542,1.10255407,87376.0,87361.0,0.0003776]
[1769390366743,1.06109056,87376.0,87361.0,0.14073773]
[1769390367336,0.44091089,87380.0,87363.0,0.11860792]
[1769390367337,0.42946663,87380.0,87363.0,0.11860792]
[1769390367561,0.00014061,87385.0,87365.0,0.11860792]
[1769390367762,0.1758,87384.0,87368.0,1.04195436]
[1769390367957,0.1758,87384.0,87361.0,0.01174182]
[1769390367958,1.07253495,87379.0,87361.0,0.00029507]
[1769390368158,1.06109056,87379.0,87362.0,0.11860792]
[1769390368369,1.06109056,87379.0,87361.0,0.00029507]
[1769390368370,0.01144492,87375.0,87361.0,0.00029507]
[1769390368577,0.0114457,87369.0,87361.0,1.6e-07]
[1769390368810,1.06109056,87367.0,87361.0,1.6e-07]
[1769390370290,1.07253652,87367.0,87361.0,1.6e-07]
[1769390370495,1.06109056,87367.0,87361.0,1.6e-07]
[1769390371010,1.09880407,87364.0,87361.0,1.6e-07]
[1769390371415,1.11025043,87364.0,87361.0,1.6e-07]
[1769390371991,1.09880407,87364.0,87361.0,1.6e-07]
[1769390372221,1.06109056,87364.0,87361.0,1.6e-07]
[1769390372826,1.07253692,87364.0,87361.0,1.6e-07]
[1769390373083,1.06109056,87364.0,87361.0,1.6e-07]
[1769390374263,1.24833639,87368.0,87361.0,1.6e-07]
[1769390374463,0.04119842,87367.0,87361.0,1.6e-07]
[1769390374896,1.11373494,87367.0,87361.0,1.6e-07]
[1769390375113,0.05264438,87367.0,87361.0,1.6e-07]
[1769390375310,0.1758,87366.0,87361.0,1.6e-07]
[1769390375513,1.06109056,87365.0,87361.0,1.6e-07]
[1769390376338,0.02955618,87369.0,87361.0,1.6e-07]
[1769390376547,0.1758,87368.0,87361.0,1.6e-07]
[1769390376975,0.17584,87367.0,87361.0,1.6e-07]
[1769390377855,0.17584,87367.0,87354.0,0.09906829]
[1769390378066,0.17584,87367.0,87354.0,0.09868787]
[1769390379789,0.0114461,87366.0,87354.0,0.09868787]
[1769390379994,0.42946663,87364.0,87354.0,0.09868787]
[1769390380195,1.50200355,87364.0,87354.0,0.09868787]
[1769390380384,0.01144649,87363.0,87347.0,0.02190055]
[1769390380585,1.07253718,87362.0,87347.0,0.02190055]
[1769390380839,1.06109056,87362.0,87341.0,0.1208195]
[1769390381040,1.06109056,87362.0,87343.0,0.10937013]
[1769390381270,1.06109056,87362.0,87344.0,0.13127096]
[1769390381479,0.01144649,87363.0,87344.0,0.13127096]
[1769390381687,1.06109056,87360.0,87344.0,0.13127096]
[1769390382066,1.07253744,87360.0,87344.0,0.13127096]
[1769390382276,1.06109056,87360.0,87344.0,0.13127096]
[1769390382482,1.49055719,87360.0,87344.0,0.13127096]
[1769390382694,1.49055719,87360.0,87344.0,1.19958917]
[1769390382865,1.49055719,87360.0,87345.0,0.10937013]
[1769390383048,0.00036369,87359.0,87347.0,0.10937013]
[1769390383255,0.00036369,87359.0,87348.0,0.0194026]
[1769390383449,0.00214789,87359.0,87348.0,0.01717225]
[1769390383673,0.42946663,87370.0,87350.0,0.10937013]
[1769390383872,1.0617598,87366.0,87352.0,0.10937013]
[1769390384110,1.06109056,87366.0,87353.0,0.02104705]
[1769390385263,0.17584,87365.0,87353.0,0.02104705]
[1769390385434,1.06109056,87361.0,87353.0,0.02104705]
[1769390385675,0.01144832,87349.0,87338.0,0.0003776]
[1769390385848,0.01144885,87345.0,87338.0,0.0003776]
[1769390386048,0.42946663,87348.0,87320.0,0.01145213]
[1769390386049,0.04119842,87340.0,87320.0,1.06831821]
[1769390386255,0.01144937,87341.0,87289.0,0.45824356]
[1769390386256,0.17584,87341.0,87322.0,1.06831821]
[1769390386571,0.17584,87341.0,87326.0,1.06831821]
[1769390386716,0.17584,87341.0,87327.0,0.10896892]
[1769390386916,0.17584,87341.0,87329.0,0.10847799]
[1769390387304,0.17584,87341.0,87329.0,0.10762925]
[1769390387476,0.12749429,87351.0,87329.0,0.10762925]
[1769390387477,0.17584,87345.0,87330.0,1.06831821]
[1769390387683,0.01144819,87350.0,87333.0,0.10937013]
[1769390387938,0.01144819,87350.0,87334.0,0.10937013]
[1769390387939,0.61675482,87350.0,87334.0,0.10937013]
[1769390388050,0.01144832,87349.0,87334.0,0.10937013]
[1769390388253,0.01144845,87348.0,87334.0,0.10937013]
[1769390388448,0.01144859,87347.0,87334.0,0.10937013]
[1769390388904,0.01144845,87348.0,87334.0,0.10691346]
[1769390389130,1.06777203,87348.0,87334.0,0.1044551]
[1769390389286,0.01144859,87347.0,87334.0,0.10177114]
[1769390389486,0.01144859,87347.0,87334.0,0.09953269]
[1769390389684,0.60530663,87350.0,87334.0,0.09706847]
[1769390389885,0.02171629,87349.0,87334.0,0.09482652]
[1769390390095,0.03316461,87349.0,87334.0,0.09235848]